Cogmind - Beta 16.1 @@@ ROGUE MODE // 2026.02.10 @ 18:00:00 Player: Artackni Result: Destroyed by Q0-XFU(R) with Subdweller Laser Performance ------------- Evolutions (0) 0 Regions Visited (2) 400 Robots Destroyed (28) 140 Value Destroyed (736) 736 Prototype IDs (0) 0 Alien Tech Used (0) 0 Bonus (-33) -33 TOTAL SCORE: 1243 Bonus ------- Friendly Fire -33 Cogmind --------- Core Integrity 0/250 Matter 123/300 Energy 246/250 System Corruption 0% Temperature Cool (6) Movement Treading (320) Ox2 Location -10/Subcaves Parts ------- > --- POWER (1) -------- Ion Engine > --- PROPULSION (2) --- Light Treads Wheel > --- UTILITY (2) ------ High-capacity Storage Unit Backup Plating I > --- WEAPON (2) ------- Light Cannon Light Cannon > --- INVENTORY (20) --- Light Ion Engine Light Nuclear Core Light Treads Light Treads Wheel Subdweller Monowheel Heat Sink Improved Heat Sink Seismic Detector EM Pulse Gun Medium Laser Small Laser Subdweller Laser Assault Rifle Light Cannon Mining Claw Shrapnel Trap Peak State ------------ > --- POWER ------------ Ion Engine > --- PROPULSION ------- Wheel Compact Wheel > --- UTILITY ---------- High-capacity Storage Unit Seismic Detector > --- WEAPON ----------- Light Cannon Battle Cannon > --- INVENTORY -------- Light Ion Engine Light Nuclear Core Light Treads Light Treads Light Treads Wheel Heat Sink Improved Heat Sink Backup Plating I Backup Plating I EM Pulse Gun Medium Laser Small Laser Subdweller Laser Assault Rifle Light Cannon Light Cannon Light Cannon Mining Claw Shrapnel Trap [Rating: 10] Favorites ----------- Power Ion Engine Engine Ion Engine Propulsion Wheel Treads Light Treads Wheel Wheel Utility High-capacity Storage Unit Device Seismic Detector Storage High-capacity Storage Unit Protection Backup Plating I Weapon Light Cannon Energy Gun EM Pulse Gun Ballistic Cannon Light Cannon Slashing Weapon Mining Claw Build | -11 -10 -10 ------- Run | Yrd Mat Sub Slots Evolved . | . . . Power . | . . . Propulsion . | . . . Utility . | . . . Weapon . | . . . Parts Attached 25 | 8 7 10 Power 3 | 1 1 1 Engine 3 | 1 1 1 Core . | . . . Reactor . | . . . Propulsion 5 | 2 1 2 Treads 1 | . . 1 Leg . | . . . Wheel 4 | 2 1 1 Hover . | . . . Flight . | . . . Utility 6 | 2 2 2 Device 2 | 1 1 . Storage 2 | 1 1 . Processor . | . . . Hackware . | . . . Protection 2 | . . 2 Artifact . | . . . Weapon 11 | 3 3 5 Energy Gun 4 | 3 . 1 Energy Cannon . | . . . Ballistic Gun . | . . . Ballistic Cannon 6 | . 2 4 Launcher . | . . . Special Weapon . | . . . Impact Weapon . | . . . Slashing Weapon 1 | . 1 . Piercing Weapon . | . . . Special Melee Weapon . | . . . Unidentified Prototypes . | . . . Parts Lost 8 | . 2 6 Power 2 | . 1 1 Propulsion 2 | . 1 1 Utility 1 | . . 1 Weapon 3 | . . 3 Highest Loss Streak 2 | . 1 2 To Critical Strikes . | . . . Average Backups 16 | 2 14 18 Power 2 | . 2 2 Propulsion 3 | 1 3 3 Utility 3 | . 2 3 Weapon 7 | . 6 8 Tool/Special . | . . . Unused Backups 9 | . . 9 Power 2 | . . 2 Propulsion 3 | . . 3 Utility 1 | . . 1 Weapon 3 | . . 3 Tool/Special . | . . . Average Slot Usage (%) 99 | . 98 99 Engine 13 | . 13 13 Treads 2 | . . 3 Wheel 25 | . 26 24 Device 12 | . 13 11 Storage 14 | . 14 14 Protection 1 | . . 2 Energy Gun 3 | . 7 . Ballistic Cannon 21 | . 20 23 Slashing Weapon 3 | . . 4 Peak Build Rating 10 | 7 9 10 Average Rating 8 | 5 8 9 On Entrance 5 | . 7 9 Avg Prop Armor Cover (%) 10 | . . 10 Naked Turns . | . . . Heaviest Build 52 | 13 50 52 Greatest Support 26 | 20 26 26 Greatest Overweight (x) 5 | . 4 5 Average Overweight (x) 1 | . 1 1 Largest Inventory Capacity 20 | 8 20 20 Average Capacity 18 | 7 18 20 Most Carried 20 | 4 20 20 Average Carried 16 | 3 14 19 Final Capacity 20 | 8 20 20 Final Carried 20 | 4 20 17 Class Distribution -------------------- 100% | Mutant Dominant Class ---------------- Mutant | -10/Materials Mutant | -10/Subcaves Resources | -11 -10 -10 ----------- Run | Yrd Mat Sub Matter Collected 965 | 217 316 432 Remotely . | . . . Salvage Created 778 | 70 549 159 Parts 50 | 7 35 8 Haulers Intercepted 1 | . 1 . Recyclers Shooed 1 | . 1 . Parts Field Recycled . | . . . Retrieved Matter . | . . . Parts Self-Destructed 7 | . . 7 Prevented . | . . . Parts Restored . | . . . Kills | -11 -10 -10 ------- Run | Yrd Mat Sub Combat Hostiles Destroyed 20 | . 11 9 Guns 2 | . 2 . Cannons 18 | . 9 9 Classes Destroyed 9 | 1 6 2 Worker 1 | . 1 . Tunneler 3 | 3 . . Hauler 1 | . 1 . Recycler 2 | . 2 . Operator 1 | . 1 . Swarmer 4 | . 3 1 Grunt 10 | . 8 2 Sentry 1 | . . 1 Subdweller 5 | . . 5 Best Kill Streak 5 | 1 5 2 Combat Bots Only 3 | . 3 2 Max Kills in Single Turn 2 | 1 1 2 Gunslinging . | . . . Exploded . | . . . Melee . | . . . Uniques/NPCs Destroyed . | . . . Combat | -11 -10 -10 -------- Run | Yrd Mat Sub Hostile Shots Fired 94 | . 31 63 Missed 22 | . 6 16 Hits 72 | . 25 47 Projectile 72 | . 25 47 AOE 1 | . . 1 Critical Strikes 2 | . . 2 Damage Taken 1208 | . 290 918 Core 259 | . 36 223 Absorbed by Shields . | . . . Core Remaining (%) 100 | 100 . . Volleys Fired 98 | 22 34 42 Largest 2 | 2 2 2 Hottest 80 | 80 80 63 Shots Fired 175 | 23 68 84 Gun 49 | 23 26 . Cannon 126 | . 42 84 Launcher . | . . . Special . | . . . Kinetic 126 | . 42 84 Thermal 21 | 21 . . Explosive . | . . . Electromagnetic 28 | 2 26 . Robot Hit Streak 15 | 10 7 15 Robot Miss Streak 4 | 2 4 4 Penetration Max . | . . . Secondary Targets . | . . . Shots Hit Robots 111 | 17 37 57 Core Hits 40 | 4 21 15 Critical Kills . | . . . Critical Parts Destroyed . | . . . Critical Strikes 10 | 3 2 5 Burn 3 | 3 . . Blast 6 | . 1 5 Corrupt 1 | . 1 . Melee Attacks 19 | . 3 16 Impact . | . . . Slashing 19 | . 3 16 Piercing . | . . . Sneak Attacks . | . . . Combat Hostiles . | . . . Follow-up Attacks . | . . . Damage Inflicted 1988 | 246 628 1114 Guns 406 | 217 189 . Cannons 1553 | . 439 1114 Explosions 29 | 29 . . Melee . | . . . Ramming . | . . . Kinetic 1553 | . 439 1114 Thermal 220 | 220 . . Explosive . | . . . Electromagnetic 215 | 26 189 . Impact . | . . . Slashing . | . . . Piercing . | . . . Highest Corruption . | . . . Average Corruption . | . . . Corruption Purged . | . . . Corruption Blocked . | . . . Overload Shots . | . . . Overflow Damage 4 | . . 4 Projectiles 4 | . . 4 Explosions . | . . . Melee . | . . . Knockbacks 19 | . 5 14 Impact . | . . . Kinetic 17 | . 5 12 Secondary 2 | . . 2 Self-Inflicted Damage . | . . . Shots . | . . . Rammed . | . . . Targets Rammed . | . . . Kicked . | . . . Crushed . | . . . Highest Temperature 120 | 120 70 8 Average Temperature 34 | 50 21 8 Received Heat Transfer 306 | . 135 171 Siege Activations . | . . . Martial Activations . | . . . Shielding Activations . | . . . Robots Disrupted . | . . . Combat Hostiles . | . . . Robots Corrupted . | . . . Combat Hostiles . | . . . Parts Fried 1 | . 1 . Impact Corruptions . | . . . Robots Melted . | . . . Combat Hostiles . | . . . Parts Melted 1 | 1 . . Heat Transferred 827 | 827 . . Parts Sabotaged . | . . . Parts Stolen . | . . . Parts Stripped . | . . . Power Chain Reactions 1 | 1 . . Alert | -11 -10 -10 ------- Run | Yrd Mat Sub Maximum Alert Level . | . . . Low Security (%) 100 | 100 100 . Level 1 . | . . . Level 2 . | . . . Level 3 . | . . . Level 4 . | . . . Level 5 . | . . . High Security . | . . . Max Security . | . . . Peak Influence 97 | 5 97 . Initial . | . . . Average 29 | . 34 . Influence Increases 475 | 15 370 90 Destroy 0b10 Robot/C 300 | . 220 80 Destroy 0b10 Robot/NC 40 | 15 25 . Destroy Leader 52 | . 42 10 Successful Hack 34 | . 34 . Disable Machine 30 | . 30 . Destroy Structure 4 | . 4 . Lose Combat Pursuer 15 | . 15 . Influence Decreases 475 | 15 294 166 Entered New Map 37 | . . 37 Time Decay 418 | 15 284 119 Lost Part 20 | . 10 10 Squads Dispatched 1 | . 1 . Investigation 1 | . 1 . Extermination . | . . . Reinforcement . | . . . Assault . | . . . Garrison . | . . . Intercept . | . . . Searches Triggered . | . . . Construction Impeded . | . . . Haulers Reinforced . | . . . Active Scanning Responses . | . . . Cargo Convoy Interrupts . | . . . Stealth | -11 -10 -10 --------- Run | Yrd Mat Sub Distress Signals 1 | . 1 . Communications Jammed . | . . . Distress Signals . | . . . Times Spotted 27 | . 16 11 Peak Tracking Total 4 | . 4 2 Tactical Retreats 1 | . 1 . Traps | -11 -10 -10 ------- Run | Yrd Mat Sub Traps Triggered 1 | . 1 . Indirectly . | . . . Trap Hack Attempts . | . . . Triggered . | . . . Disarmed . | . . . Reprogrammed . | . . . Reused . | . . . Traps Extracted . | . . . Installed . | . . . Triggered . | . . . Most Traps Carried 1 | . . 1 Machines | -11 -10 -10 ---------- Run | Yrd Mat Sub Machines Disabled 2 | . 2 . Max in Single Turn 1 | . 1 . Machines Repaired . | . . . Machines Dismantled . | . . . Machines Sabotaged . | . . . Overloaded Fab Kills . | . . . Hacking | -11 -10 -10 --------- Run | Yrd Mat Sub Machines Accessed 9 | . 7 2 Terminals 6 | . 6 . Fabricators . | . . . Repair Stations 1 | . 1 . Recycling Units . | . . . Scanalyzers . | . . . Garrison Access . | . . . Total Hacks 17 | . 12 5 Successful 14 | . 9 5 Failed 3 | . 3 . Catastrophic . | . . . Database Lockouts . | . . . Manual 8 | . 8 . Terminals 9 | . 9 . Fabricators . | . . . Repair Stations 3 | . 3 . Recycling Units . | . . . Scanalyzers . | . . . Garrison Access . | . . . Terminal Hacks 6 | . 1 5 Record 4 | . . 4 Open Door 1 | . . 1 Zone Layout 1 | . 1 . Fabricator Hacks . | . . . Repair Station Hacks 2 | . 2 . Refit 2 | . 2 . Recycling Unit Hacks . | . . . Scanalyzer . | . . . Garrison Access Hacks . | . . . Unauthorized Hacks 6 | . 6 . Terminals 6 | . 6 . Skim 6 | . 6 . Fabricators . | . . . Repair Stations . | . . . Recycling Units . | . . . Scanalyzers . | . . . Garrison Access . | . . . Data Cores Recovered 1 | . 1 . Used . | . . . Hacking Detections 2 | . 2 . Full Trace Events . | . . . Feedback Events . | . . . Feedback Blocked . | . . . Robot Schematics Acquired . | . . . Robots Built . | . . . Authchips . | . . . Time . | . . . Total Robot Build Rating . | . . . Part Schematics Acquired . | . . . Parts Built . | . . . Authchips . | . . . Time . | . . . Total Part Build Rating . | . . . Part Studies Acquired . | . . . Parts Repaired . | . . . Time . | . . . Parts Recycled . | . . . Recycled Matter . | . . . Retrieved Matter . | . . . Retrieved Components . | . . . Parts Scanalyzed . | . . . Part Schematics Acquired . | . . . Parts Damaged . | . . . Bothacking | -11 -10 -10 ------------ Run | Yrd Mat Sub Used RIF Installer . | . . . Robots Hacked . | . . . Non-combat . | . . . Combat . | . . . Robot Hacks Applied . | . . . Relay Couplers Released . | . . . Fabnet Peak Effective % . | . . . Robots Rewired . | . . . Allies Hacked . | . . . Hacks Repelled . | . . . Allies | -11 -10 -10 -------- Run | Yrd Mat Sub Total Allies . | . . . Largest Group . | . . . Highest-Rated Group . | . . . Highest-Rated Ally . | . . . Total Orders . | . . . Ally Attacks . | . . . Total Damage . | . . . Kills . | . . . Allies Corrupted . | . . . Allies Melted . | . . . Intel | -11 -10 -10 ------- Run | Yrd Mat Sub Active Infowar (turns) 1702 | 56 744 902 Seismic 1702 | 56 744 902 Robot Analysis Total . | . . . Derelict Logs Recovered 1 | . . 1 Drone Launches . | . . . Drone Recoveries . | . . . Exploration | -11 -10 -10 ------------- Run | Yrd Mat Sub Turns Passed 2109 | 125 818 1166 Spaces Moved 1447 | 85 566 796 Core 13 | 13 . . Treads . | . . . Legs . | . . . Wheels 1434 | 72 566 796 Hover . | . . . Flight . | . . . Fastest Speed 50 | 50 80 105 Average Speed 107 | 75 103 113 Slowest Speed 155 | 80 140 155 Overloaded Moves . | . . . Propulsion Burnouts . | . . . Robots Hopped . | . . . Potential Cave-ins . | . . . Cave-ins Triggered . | . . . Exploration Rate (%) 40 | 4 72 44 Regions Visited 2 Branch Regions 1 Pre-discovered Areas 3 | . 2 1 Known Exits Taken 1 | . 1 . Unknown Exits Taken 1 | 1 . . Scrap Searched 4 | . . 4 Spaces Dug 1 | . 1 . Terrain Destroyed 3 | 2 1 . Melee 1 | . 1 . Projectile . | . . . AOE 2 | 2 . . Terrain Rammed . | . . . Walls Destroyed . | . . . Machines Disabled . | . . . Actions | -11 -10 -10 --------- Run | Yrd Mat Sub Total 1776 | 118 722 936 Wait 138 | . 88 50 Move 1445 | 84 565 796 Hop . | . . . Pick Up 24 | 4 16 4 Fast Attach 9 | 7 2 . Attach 8 | . 2 6 Detach 3 | . 3 . Swap 28 | 1 6 21 Drop 4 | . 3 1 Fire 98 | 22 34 42 Melee 19 | . 3 16 Ram . | . . . Kick . | . . . Crush . | . . . Escape Stasis . | . . . Rewire . | . . . Trap . | . . . Miscellaneous . | . . . Route ------- -11/Scrapyard -10/Materials (discovered 5 exits: *Mat x3 / [*Min] / *Sub) -10/Subcaves (discovered 2 exits: *Mat x2) History --------- Turn | Location | Event 4 | -11/Scrapyard | Discovered new exit (range 15) 126 | -11/Scrapyard | Entered Materials 200 | -10/Materials | Discovered new exit (range 16) 306 | -10/Materials | Build established: Mutant 580 | -10/Materials | Discovered new exit (range 14) 669 | -10/Materials | Identified exit to Materials 731 | -10/Materials | Learned location of Storage (-7) 782 | -10/Materials | Loaded intel: 2 recycling unit locations 859 | -10/Materials | Identified exit to Subcaves 915 | -10/Materials | Learned 4 Recycling zone layouts 944 | -10/Materials | Entered Subcaves 945 | -10/Subcaves | Approached by a straggling Scientist 945 | -10/Subcaves | Identified exit to Materials 968 | -10/Subcaves | Ambushed by Subdweller buried in earth 968 | -10/Subcaves | Ambushed by Subdweller buried in earth 1063 | -10/Subcaves | Core integrity fell below 50% 1229 | -10/Subcaves | A swath of the cavern ceiling suddenly collapsed 1270 | -10/Subcaves | Visited Clippyterm 1273 | -10/Subcaves | Learned location of Extension (-6) 1273 | -10/Subcaves | Learned Factory trap positions 1372 | -10/Subcaves | Shifting Twisted Machinery released Sub. Power Source 1375 | -10/Subcaves | Shifting Twisted Machinery released Sub. Beam Cannon 1573 | -10/Subcaves | Discovered exit to Materials (range 15) 1574 | -10/Subcaves | Shifting Twisted Machinery released Battle Cannon 1593 | -10/Subcaves | Learned Materials emergency access door positions 1720 | -10/Subcaves | Shifting Twisted Machinery released Sub. Laser 1855 | -10/Subcaves | Core integrity fell below 20% 2110 | -10/Subcaves | Destroyed by Q0-XFU(R) with Subdweller Laser Last Messages --------------- 01933_ Acquired 25 matter. 01944_ Subatomizers dissect the Sub. Laser. 02008_ X2-F1M(R): "LEAVESUB!" 02013_ X2-F1M(R) suffers critical hit (Blast). 02013_ X2-F1M(R) knocked back. 02013_ X2-F1M(R) Sub. Monowheel blasted off. 02016_ Lgt. Cannon destroyed. 02016_ Backup Plating I destroyed. 02017_ Subatomizers dissect the Sub. Monowheel. 02018_ X2-F1M(R) destroyed. 02022_ Acquired 1 matter. 02027_ Acquired Sub. Monowheel. 02028_ Subatomizers dissect the Sub. Optics. 02028_ Acquired 27 matter. 02030_ Acquired 2 matter. 02031_ Acquired 3 matter. 02038_ Subatomizers dissect the Sub. Optics. 02096_ RE-SYJ(R) knocked back. 02108_ Battle Cannon destroyed. 02109_ RE-SYJ(R) knocked back. Map ----- +----------------------------------------------------+ | ?????????????????????????????????????????????????? | | ?????????????????????????????????????????????????? | | ?????????????????????????????????????????????????? | | ?????????????????????????????????????????????????? | | ?????????????????????????????????????????????????? | | ?????????????????????????????????????????????????? | | ?????????????????????????????????????????????????? | | ?????????????????????????????????????????????????? | | ?????????????????????????????????????????????????? | | ????????????????????????????????????????? ???????? | | ????????????????????????????????????????? ???????? | | ??????????????????????#""##?????????????? ???????? | | ?????????????????????##""# ?????????????? ??###??? | | ????????????????????## "" "?????##??????? ?? ##?? | | ????????????????????# " ""?????? ??????? ?? #?? | | ????????????????????# "#?????? ??#???? ## #?? | | ????????????????????# ###??## #???? #?? | | ????????????????##### #### #?????# #?? | | ???????????????"# "" ## #?????# #?? | | ???????????????"""" " # ##????# #?? | | ???????????????"""" "" R #????# #?? | | ???????????????""#### #?? ####### #??? | | ????????????? ?""""#"""""""" ##??## # "## #???? | | ???????????# """"""""" ##??##*& ##??? | | ????????????# #???# ! ##?? | | ?????????????? # # @ ##?## # # # #?? | | ??????????????????#### ### ####### ##?? | | ???????????????????### ## #?# ## ##??? | | ??????????????????## ##R% #??# ##???? | | ??????????????????# ##### ##?## ##????? | | ??????????????????# ## ##?## ##?????? | | ??????????????????### #??# ##?????? | | ????????????????????## ######?## ##????? | | ?????????????????????# # ## ##??#####& #????? | | ?????????????????????##########???# #????? | | ??????????????????????????????###?## #????? | | ?????????????????????????????## #### ## #????? | | ????????????????????????????## ## ##?##?#### | | ????????????????????????????# ## "#" "#???# # | | ????????????????????????????# " ##?## #? | | ????????????????????????????# & ["# #### #? | | ????????????????????????????# & " ## #? | | ???????????????????????????## """"" #? | | ???????????????????????????# "" #? | | ???????????????????????????## ##"## ""#? | | ????????????????????????????#& ######" "##? | | ????????????????????????????# & #### #####" "##?? | | ????????????????????????????# ##?## #"# #??? | | ????????????????????????????##/##?# """ "#??? | | ????????????????????????????##! ##### ###"#"" #??? | +----------------------------------------------------+ Best States ------------- Heat Dissipation 35 Energy Generation 10 Energy Capacity 250 Matter Stores 300 Matter Capacity 300 Sight Range 16 Terrain Scan Density 10 Armor Coverage 80 Evasion (%) 44 Recoil Reduction 1 Item Schematics ----------------- None Robot Schematics ------------------ None Fabricated ------------ Nothing Repaired ---------- Nothing Studied --------- None Alien Tech Used ----------------- None Achievements -------------- None Challenges ------------ None Game ------ Seed SuspensionWardroneWeb Manual? 0 Play Time 00:19:10 Cumulative 157.6 hours Start 2026.02.10 @ 17:38:26 End 2026.02.10 @ 18:00:00 Sessions 1 Manual Loads 0 Difficulty Rogue Special Mode None Game No. 81 Rogue 81 Adventurer 0 Explorer 0 Win Type - Total 7 Types 6/0/1/0/0/0/0/0/0/0 Lore% 66 Gallery% 64 Achievement% 61 Wizard Run 0 Options --------- Layout 0 ASCII 0 Keyboard 1 Movement Arrows Keybinds 0 Fullscreen 1 Font 18/SmallcapsGlow Map View 76x50 Zoom Use 0% Tactical HUD 1 Map Filters NONE Filters NONE Steam 1 RUN: c4eca8cb-48bf-42b1-9c92-2e74343f25d8